{"text_format":"1","workbook":"xlsx","n_sheets":8,"sheets":["Intro","AccountDetail","RevenueKey","ExpenseKey","AccountList","UPload","Courts","YE"],"not_rendered":{"charts":0,"images":0,"macros":1,"external_links":3,"defined_names":124,"comments":0,"pivot_tables":0},"unopened":[],"bounds":{"document_bytes":16777216,"sheet_cells":100000,"rows_first":2000,"rows_last":500,"rows_between":2000,"halvings":0,"cell_chars":16384,"cell_head_chars":4096},"cells_cut":0,"cells_raw":0,"read":"whole","date_system":"1900"}

{"sheet":"Intro","index":0,"n_rows":10,"n_cols":6,"rows_kept":10,"cut":false,"hidden":false,"merged":[[1,1,1,2]]}
[]
[null,"Please provide an answer for each question below"]
[null,"Please select your court name","Please select court from dropdown"]
[null,"How many employees (do not include judges) work for your court?",null,null,null,{"$f":"OR(ISTEXT(C4), ISBLANK(C4))","v":true}]
[null,"How many separate funds/accounts do you have to report?                      ** The 2020 Account List spreadsheet has been provided separately as a reference",null,null,null,{"$f":"ISBLANK(C5)","v":true}]
[null,"What is the year-end date for your audit?",null,null,null,{"$f":"ISBLANK(C6)","v":true}]
[null,"Contact name",null,null,null,{"$f":"ISBLANK(C7)","v":true}]
[null,"Contact email address",null,null,null,{"$f":"OR(ISERROR(FIND(\"@\",C8)),ISERROR(FIND(\" \",C8))=FALSE,ISERROR(FIND(\".\",C8)),ISBLANK(C8))","v":true}]
[null,"Contact phone number (ten digits only, no dashes or spaces)",null,null,null,{"$f":"OR(ISTEXT(C9), ISBLANK(C9), LEN(C9)<>10)","v":true}]
[null,"Chief Judge name",null,null,null,{"$f":"ISBLANK(C10)","v":true}]

{"sheet":"AccountDetail","index":1,"n_rows":90,"n_cols":13,"rows_kept":90,"cut":false,"hidden":false,"merged":[]}
["DRaw_ID"]
[{"$f":"Intro!C5","v":0},"Court Name","Account I","Account II","Account III","Account  IV","Account  V","Account VI","Account  VII","Account VIII","Account IX","Account X"]
[null,{"$f":"Intro!C3","v":"Please select court from dropdown"},"[please select account name in dropdown]","[please select account name in dropdown]","[please select account name in dropdown]","[please select account name in dropdown]","[please select account name in dropdown]","[please select account name in dropdown]","[please select account name in dropdown]","[please select account name in dropdown]","[please select account name in dropdown]","[please select account name in dropdown]","TOTALS"]
[null,"Beginning balance",0,0,0,0,0,0,0,0,0,0,{"$f":"SUM(C4:L4)","v":0}]
[null,"Revenue"]
[null,"Federal and State Funding"]
[null,"All LASC grants/pass-thru funds/appropriations",0,0,0,0,0,0,0,0,0,0,{"$f":"SUM(C7:L7)","v":0}]
[null,"Federal and state grants (non-LASC)",0,0,0,0,0,0,0,0,0,0,{"$f":"SUM(C8:L8)","v":0}]
[null,"Total grant funding",{"$f":"C7+C8","v":0},{"$f":"D7+D8","v":0},{"$f":"E7+E8","v":0},0,{"$f":"G7+G8","v":0},{"$f":"H7+H8","v":0},{"$f":"I7+I8","v":0},{"$f":"J7+J8","v":0},{"$f":"K7+K8","v":0},{"$f":"L7+L8","v":0},0]
[null,"Local Govt. Support"]
[null,"Criminal Court Fund",0,0,0,0,0,0,0,0,0,0,0]
[null,"General Fund",0,0,0,0,0,0,0,0,0,0,0]
[null,"Tax revenue (include gaming tax)",0,0,0,0,0,0,0,0,0,0,0]
[null,"On-behalf local support ",0,0,0,0,0,0,0,0,0,0,0]
[null,"Other local ",0,0,0,0,0,0,0,0,0,0,0]
[null,"Total Local Support",{"$f":"SUM(C11:C15)","v":0},{"$f":"SUM(D11:D15)","v":0},{"$f":"SUM(E11:E15)","v":0},0,{"$f":"SUM(G11:G15)","v":0},{"$f":"SUM(H11:H15)","v":0},{"$f":"SUM(I11:I15)","v":0},{"$f":"SUM(J11:J15)","v":0},{"$f":"SUM(K11:K15)","v":0},{"$f":"SUM(L11:L15)","v":0},0]
[null,"Civil Fees/Fines   ",0,0,0,0,0,0,0,0,0,0,0]
[null,"Criminal Court Costs/Fees/Fines"]
[null,"Court cost fees, bond forfeitures, bail fees",0,0,0,0,0,0,0,0,0,0,0]
[null,"Criminal service, processing, and administrative fees",0,0,0,0,0,0,0,0,0,0,0]
[null,"Supervision and special program fees",0,0,0,0,0,0,0,0,0,0,0]
[null,"Special revenue fees ",0,0,0,0,0,0,0,0,0,0,0]
[null,"Criminal contempt, other fines",0,0,0,0,0,0,0,0,0,0,0]
[null,"Total Criminal Defendant ",{"$f":"SUM(C19:C23)","v":0},{"$f":"SUM(D19:D23)","v":0},{"$f":"SUM(E19:E23)","v":0},0,{"$f":"SUM(G19:G23)","v":0},{"$f":"SUM(H19:H23)","v":0},{"$f":"SUM(I19:I23)","v":0},{"$f":"SUM(J19:J23)","v":0},{"$f":"SUM(K19:K23)","v":0},{"$f":"SUM(L19:L23)","v":0},0]
[null,"Other Income"]
[null,"Use of building, technology, other assets",0,0,0,0,0,0,0,0,0,0,0]
[null,"Credits, refunds, reimbursements",0,0,0,0,0,0,0,0,0,0,0]
[null,"Interest, investment income",0,0,0,0,0,0,0,0,0,0,0]
[null,"Other revenue, amount",0,0,0,0,0,0,0,0,0,0,0]
[null,"Total Other Income",{"$f":"SUM(C26:C29)","v":0},{"$f":"SUM(D26:D29)","v":0},{"$f":"SUM(E26:E29)","v":0},0,{"$f":"SUM(G26:G29)","v":0},{"$f":"SUM(H26:H29)","v":0},{"$f":"SUM(I26:I29)","v":0},{"$f":"SUM(J26:J29)","v":0},{"$f":"SUM(K26:K29)","v":0},{"$f":"SUM(L26:L29)","v":0},0]
[null,"Total revenue",{"$f":"C9+C16+C17+C24+C30","v":0},{"$f":"D9+D16+D17+D24+D30","v":0},{"$f":"E9+E16+E17+E24+E30","v":0},0,{"$f":"G9+G16+G17+G24+G30","v":0},{"$f":"H9+H16+H17+H24+H30","v":0},{"$f":"I9+I16+I17+I24+I30","v":0},{"$f":"J9+J16+J17+J24+J30","v":0},{"$f":"K9+K16+K17+K24+K30","v":0},{"$f":"L9+L16+L17+L24+L30","v":0},0]
[]
[null,"Expenses"]
[null,"Personnel costs"]
[null,"All non-judge personnel costs",0,0,0,0,0,0,0,0,0,0,{"$f":"SUM(C35:L35)","v":0}]
[null,"City/parish judge salary and benefits",0,0,0,0,0,0,0,0,0,0,0]
[null,"Total Personnel costs",{"$f":"SUM(C35:C36)","v":0},{"$f":"SUM(D35:D36)","v":0},{"$f":"SUM(E35:E36)","v":0},0,{"$f":"SUM(G35:G36)","v":0},{"$f":"SUM(H35:H36)","v":0},{"$f":"SUM(I35:I36)","v":0},{"$f":"SUM(J35:J36)","v":0},{"$f":"SUM(K35:K36)","v":0},{"$f":"SUM(L35:L36)","v":0},0]
[null,"Court services - non-employee courtroom support"]
[null,"Interpreters, language services",0,0,0,0,0,0,0,0,0,0,0]
[null,"Court transcripts/reporting services and costs",0,0,0,0,0,0,0,0,0,0,0]
[null,"Sanity, psych, other defendant evaluations",0,0,0,0,0,0,0,0,0,0,0]
[null,"Payments to jurors and witnesses",0,0,0,0,0,0,0,0,0,0,0]
[null,"All other court services (include in-court security)",0,0,0,0,0,0,0,0,0,0,0]
[null,"Court services total",{"$f":"SUM(C39:C43)","v":0},{"$f":"SUM(D39:D43)","v":0},0,0,0,0,0,0,0,0,0]
[null,"Travel and support expenses"]
[null,"Judge travel",0,0,0,0,0,0,0,0,0,0,0]
[null,"Judge support",0,0,0,0,0,0,0,0,0,0,0]
[null,"Employee travel",0,0,0,0,0,0,0,0,0,0,0]
[null,"Employee  support",0,0,0,0,0,0,0,0,0,0,0]
[null,"Total travel and support expenses",{"$f":"SUM(C46:C49)","v":0},{"$f":"SUM(D46:D49)","v":0},0,0,0,0,0,0,0,0,0]
[null,"Operational equipment, services, and supplies"]
[null,"Professional services - non-courtroom",0,0,0,0,0,0,0,0,0,0,0]
[null,"Operating services and expenses",0,0,0,0,0,0,0,0,0,0,0]
[null,"Office supplies",0,0,0,0,0,0,0,0,0,0,0]
[null,"Office equipment and furniture",0,0,0,0,0,0,0,0,0,0,0]
[null,"Facilities/building expenses",0,0,0,0,0,0,0,0,0,0,0]
[null,"Specialty court supplies/services ",0,0,0,0,0,0,0,0,0,0,0]
[null,"Total Operational equipment, services, and supplies",{"$f":"SUM(C52:C57)","v":0},{"$f":"SUM(D52:D57)","v":0},{"$f":"SUM(E52:E57)","v":0},0,0,0,0,0,0,0,0]
[null,"Other expenses"]
[null,"LASC grant covered or reimbursed expenses ",0,0,0,0,0,0,0,0,0,0,0]
[null,"Investments, CDs, refunds, reimbursements",0,0,0,0,0,0,0,0,0,0,0]
[null,"Other - amount (not defined elsewhere) ",0,0,0,0,0,0,0,0,0,0,0]
[null,"Total Other expenses",{"$f":"SUM(C60:C62)","v":0},{"$f":"SUM(D60:D62)","v":0},{"$f":"SUM(E60:E62)","v":0},0,0,0,0,0,0,0,0]
[null,"Total expenses",{"$f":"C37+C44+C50+C58+C63","v":0},{"$f":"D37+D44+D50+D58+D63","v":0},{"$f":"E37+E44+E50+E58+E63","v":0},0,0,0,0,0,0,0,0]
[]
[null,"Transfers In",0,0,0,0,0,0,0,0,0,0,0]
[null,"Transfers Out",0,0,0,0,0,0,0,0,0,0,0]
[null,"YE Balance",{"$f":"(C4+C31+C66)-(C64+C67)","v":0},0,0,0,0,0,0,0,0,0,0]
[]
[]
[]
[]
[]
[]
[]
[]
[]
[]
[]
[]
[]
[]
[]
[]
[]
[]
["hearing officer_supportenf"]
["prob_spec_costs"]
["other_court_support"]
["court_serv_total"]

{"sheet":"RevenueKey","index":2,"n_rows":24,"n_cols":3,"rows_kept":24,"cut":false,"hidden":false,"merged":[]}
["Revenue Type and Category","Additional category information","Court type (if not relevant to all courts)"]
[]
["Federal and State Funding"]
["All LASC grants/pass-thru funds/appropriations","Drug court and specialty court grants, TANF, FINS, state appropriated funds for Commissioners, office expenses, etc. "]
["Federal and state grants (non-LASC/judiciary-based)","Any grant funds that come from the state or federal sources but are not included in the Judiciary appropriation"]
["Local Govt. Support"]
["Criminal Court Fund ","Revenue from a designated Criminal Court Fund; disbursed to court for operational costs","District Courts"]
["General Fund","Revenue from local government's general fund; non-user based local government revenue"]
["Tax revenue (include gaming tax)","Ad valorem, gaming tax, or other local tax-based revenue","District Courts"]
["On-behalf local support (do not include in general fund also)","Direct payments made by local government on-behalf of the court for personnel and other court operations or services costs"]
["Other local (not from the above sources or unknown)","Revenue sharing or other local sources"]
["Civil Fees/Fines"]
["Civil fees and fines","All fees collected from civil filings and civil case processing; including designated filing fees for court operations and building fees, child support enforcement fees (DCFS/Hearing Officer fees), adoption fees, copy/transcript fees on civil cases, and city court judge salary fees. Include any civil contempt fines or civil ordinance fines that are assessed and kept by the court."]
["Criminal Court Costs/Fees/Fines"]
["Court cost fees (JEF fees, court operations), bond forfeitures, bail fees","Criminal court costs assessed in relation to a finding of guilt. Includes JEF fees, court operations fees, cash bond forfeitures, and bail fees"]
["Criminal service, processing, and administrative fees","All fees collected to cover the cost of providing services in criminal cases, including copy fees, warrant fees, docketing/re-docketing fees, expungement fees, DMV reinstatement fees"]
["Supervision and special program fees","Include probation, diversion, drug testing, all specialty court fees and fees related to any additional requirements for securing conditional release"]
["Special revenue fees (FINS, Ind. Transcript, Legal, building fees, etc.)","All fees collected that are statutorally required to provide for specific services and often have specific rules re collection, disbursement, and auditing"]
["Criminal contempt; fines","Fines collected from defendants for non-appearance or other criminal contempt charge. Any other criminal fines that are not collected from the Criminal Court Fund should be included here."]
["Other Income"]
["Use of building, technology, other assets","Includes income collected from rentals, permit fees, reports from LexisNexis and other search engines, sale of assets, fees for employee badges, unclaimed property, and judgements"]
["Credits, refunds, reimbursements, etc.","Credits, reimbursements, refunds, write-offs or other income related to repayment/cancelled transactions that originated in a prior reporting period. "]
["Interest and investment income","Interest on balances of existing funds or other short-term or long-term investments like CDs "]
["Other revenue, amount","*This category should only capture revenue sources that cannot be placed in one of the categories above. If significant revenue is categorized as 'other' we will follow-up with a request for additional detail."]

{"sheet":"ExpenseKey","index":3,"n_rows":27,"n_cols":3,"rows_kept":27,"cut":false,"hidden":false,"merged":[]}
["Expense Type and Category","Additional category information","Court type (if not relevant to all courts)"]
[]
["Personnel costs"]
["Personnel costs","Include all salary, fringe benefits, payroll taxes, workman's comp, etc. for full-time, part-time, contract, and substitute employees. Include salary contributions and reimbursements.  If on-behalf revenue for personnel is included in this fund, please include on-behalf personnel costs as well.  Exclude specialty court/grant reimbursements that cover personnel costs."]
["City/parish courts judge salary and benefits ","City and parish courts only. Include the judge's salary and benefits that come from court fees and local government sources. Include any costs for ad hoc and pro tempore judges paid by the court or local sources.","City and parish courts"]
["Court services - provided to support courtroom proceedings by non-employees"]
["Interpreters, language services","All costs paid for interpreters, interpreter services, and language access services"]
["Court transcripts/reporting services and costs","Payments made to court reporters and any costs associated with court transcripts/reporting "]
["Sanity, psych, other defendant evaluations","The cost of any defendant evaluation paid out of the fund as part of official court procedure","District courts"]
["Payments to jurors and witnesses (including off-duty officers)","Payments made to jurors, off-duty officers or other witnesses in service of the court"]
["All other court services (include in-court security)","Include all in-court services not otherwise categorized; include intergovernmental agreements for in-court services."]
["Travel and support expenses"]
["Judge travel, both within-district and conference travel","Total paid out of court funds (and not reimbursed by LASC during the reporting period) for judge travel, both within district and for meetings/conferences. Include per diems, conference fees, mileage, meals, etc."]
["Judge liability insurance, dues, other support","All other support; cell phone, dues, subscriptions, liability insurance, home security, etc."]
["Employee travel, both local and conference travel","All employee travel costs including mileage, per diem, conference costs, meals, etc."]
["Employee liability insuurance, bonds, dues, other support","All employee support costs such as liability insurance, certifications, bonds, dues, subscriptions, etc."]
["Operational equipment, services, and supplies"]
["Professional services not related to courtrom proceedings ","Expenses paid for specialized office support such as accounting, audit costs, payroll services, legal services, IT, etc."]
["Operating services and expenses","Includes operating expenses such as advertising/legal notices, copier/equipment rental, jury meals, internal meeting expenses, bank fees, postage, printing, scanning, cell phone services, vehicle maintenance costs and insurance, cyber insurance, new-hire costs (drug testing/physicals), and credit card fees. Also includes operating services such as parking, law library costs, shredding, storage, vending, secure deposit pick-up, laundry, photography, etc."]
["Office supplies, paper/office/cleaning, kitchenware","All office expenses for supplies, cleaning products, and kitchen staples"]
["Office equipment and furniture","Including computers, computer hardware and software, furniture, robes and uniforms, gavels"]
["Facilities/building expenses","All non-reimbursed building costs including rent, alarm systems, internet, (non cell) phone service, utilities, water, building repair/maintenance, property taxes, sewage, insurance on building and major assets, moving costs, COVID protection supplies, locksmith services, property protection costs"]
["Specialty court/probation/diversion supplies and services (non-reimbursed)","Any supplies for graduation or special programming costs that are not reimbursed or covered by grant funding"]
["Other expenses"]
["Grant covered (reimbursed) expenses","All expenses that were covered by LASC grants (FINS, specialty courts, etc.)","JDCs with LASC grants and specialty courts"]
["Investments, refunds, non-grant reimbursements","Include CD purchases or other investments, refunds and reimbursements for expenses related to transactions that originated in a prior reporting period"]
["Other - amount (not defined elsewhere) ","*This category should only capture expense types that cannot be placed in one of the categories above. If significant expenses are categorized as 'other' we will follow-up with a request for additional detail."]

{"sheet":"AccountList","index":4,"n_rows":436,"n_cols":6,"rows_kept":436,"cut":false,"hidden":true,"merged":[]}
["Court_identity","Account1"]
["1st CIRCUIT COURT OF APPEAL","General Fund",null,"ABBEVILLE CITY COURT"]
["1st CIRCUIT COURT OF APPEAL","Fee Fund",null,"ALEXANDRIA CITY COURT"]
["1st CIRCUIT COURT OF APPEAL","Other",null,"ASCENSION PARISH COURT"]
["2ND CIRCUIT COURT OF APPEAL","General Fund"]
["2ND CIRCUIT COURT OF APPEAL","Fee Fund"]
["2ND CIRCUIT COURT OF APPEAL","Investment Funds"]
["2ND CIRCUIT COURT OF APPEAL","Other"]
["3RD CIRCUIT COURT OF APPEAL","General Fund"]
["3RD CIRCUIT COURT OF APPEAL","Fee Fund"]
["3RD CIRCUIT COURT OF APPEAL","Investments"]
["3RD CIRCUIT COURT OF APPEAL","Other"]
["4TH CIRCUIT COURT OF APPEAL","General Fund"]
["4TH CIRCUIT COURT OF APPEAL","Whitney savings"]
["4TH CIRCUIT COURT OF APPEAL","Clerks Fund"]
["4TH CIRCUIT COURT OF APPEAL","Liberty Bank and Trust"]
["4TH CIRCUIT COURT OF APPEAL","Other"]
["5TH CIRCUIT COURT OF APPEAL","Court Operations"]
["5TH CIRCUIT COURT OF APPEAL","Other"]
["1ST JUDICIAL DISTRICT COURT","General Fund"]
["1ST JUDICIAL DISTRICT COURT","Judicial Expense Fund"]
["1ST JUDICIAL DISTRICT COURT","Criminal Court Fund  "]
["1ST JUDICIAL DISTRICT COURT","Child Support Fund"]
["1ST JUDICIAL DISTRICT COURT","Law Officers Witness Fund"]
["1ST JUDICIAL DISTRICT COURT","Other"]
["2ND JUDICIAL DISTRICT COURT","Judicial Expense Fund"]
["2ND JUDICIAL DISTRICT COURT","Probation"]
["2ND JUDICIAL DISTRICT COURT","IV-D "]
["2ND JUDICIAL DISTRICT COURT","Other"]
["3RD JUDICIAL DISTRICT COURT","Judicial Clerk's Fund - JCF"]
["3RD JUDICIAL DISTRICT COURT","Union Parish Probation"]
["3RD JUDICIAL DISTRICT COURT","Children's Assistance "]
["3RD JUDICIAL DISTRICT COURT","Drug Court"]
["3RD JUDICIAL DISTRICT COURT","Other"]
["4TH JUDICIAL DISTRICT COURT","Judicial Expense Fund"]
["4TH JUDICIAL DISTRICT COURT","Adult Drug Court"]
["4TH JUDICIAL DISTRICT COURT","Probation"]
["4TH JUDICIAL DISTRICT COURT","Re-entry Court"]
["4TH JUDICIAL DISTRICT COURT","FINS"]
["4TH JUDICIAL DISTRICT COURT","Payroll"]
["4TH JUDICIAL DISTRICT COURT","Juvenile Drug Court"]
["4TH JUDICIAL DISTRICT COURT","Child Support"]
["4TH JUDICIAL DISTRICT COURT","Other"]
["5TH JUDICIAL DISTRICT COURT","Judicial Expense Fund"]
["5TH JUDICIAL DISTRICT COURT","Special Excessive Costs"]
["5TH JUDICIAL DISTRICT COURT","FINS"]
["5TH JUDICIAL DISTRICT COURT","Richland Parish District Judges"]
["5TH JUDICIAL DISTRICT COURT","Hearing Officer"]
["5TH JUDICIAL DISTRICT COURT","Drug Court"]
["5TH JUDICIAL DISTRICT COURT","Other"]
["6TH JUDICIAL DISTRICT COURT","Judicial Expense Fund"]
["6TH JUDICIAL DISTRICT COURT","Probation Account"]
["6TH JUDICIAL DISTRICT COURT","FINS"]
["6TH JUDICIAL DISTRICT COURT","Drug Court"]
["6TH JUDICIAL DISTRICT COURT","Non Support"]
["6TH JUDICIAL DISTRICT COURT","Other"]
["7TH JUDICIAL DISTRICT COURT","Judicial Expense Fund"]
["7TH JUDICIAL DISTRICT COURT","FINS"]
["7TH JUDICIAL DISTRICT COURT","Other"]
["8TH JUDICIAL DISTRICT COURT","Judicial Expense Fund"]
["8TH JUDICIAL DISTRICT COURT","Misdemeanor Probation"]
["8TH JUDICIAL DISTRICT COURT","Child Support"]
["8TH JUDICIAL DISTRICT COURT","Police Jury On-behalf"]
["8TH JUDICIAL DISTRICT COURT","Other"]
["9TH JUDICIAL DISTRICT COURT","Judicial Expense Fund"]
["9TH JUDICIAL DISTRICT COURT","Child Support Fund"]
["9TH JUDICIAL DISTRICT COURT","FINS"]
["9TH JUDICIAL DISTRICT COURT","Adult Drug Court"]
["9TH JUDICIAL DISTRICT COURT","Behavioral Health Court Grant"]
["9TH JUDICIAL DISTRICT COURT","Juvenile Probation"]
["9TH JUDICIAL DISTRICT COURT","Rapides CCF"]
["9TH JUDICIAL DISTRICT COURT","Rapides - General Fund"]
["9TH JUDICIAL DISTRICT COURT","Other"]
["10TH JUDICIAL DISTRICT COURT","Judicial Expense Fund",null,"6TH JUDICIAL DISTRICT COURT"]
["10TH JUDICIAL DISTRICT COURT","Child Support /4-D Account",null,"18TH JUDICIAL DISTRICT COURT","=OFFSET($B$1, MATCH($D$17, $A$2:$A$436, 0), 0, COUNTIF($A$2:$A$436, $D$17), 1)","Judicial Expense Fund"]
["10TH JUDICIAL DISTRICT COURT","Adult Drug Court",null,"11TH JUDICIAL DISTRICT COURT"]
["10TH JUDICIAL DISTRICT COURT","Juvenile Drug Court",null,"2ND CIRCUIT COURT OF APPEAL"]
["10TH JUDICIAL DISTRICT COURT","FINS",null,"1ST JUDICIAL DISTRICT COURT"]
["10TH JUDICIAL DISTRICT COURT","Criminal Court Fund",null,"2ND JUDICIAL DISTRICT COURT"]
["10TH JUDICIAL DISTRICT COURT","Other",null,"10TH JUDICIAL DISTRICT COURT"]
["11TH JUDICIAL DISTRICT COURT","Judicial Expense Fund",null,"11TH JUDICIAL DISTRICT COURT"]
["11TH JUDICIAL DISTRICT COURT","Sabine Parish FINS",null,"12TH JUDICIAL DISTRICT COURT"]
["11TH JUDICIAL DISTRICT COURT","Other",null,"13TH JUDICIAL DISTRICT COURT"]
["12TH JUDICIAL DISTRICT COURT","Judicial Expense Fund",null,"14TH JUDICIAL DISTRICT COURT"]
["12TH JUDICIAL DISTRICT COURT","Court Service Program",null,"15TH JUDICIAL DISTRICT COURT"]
["12TH JUDICIAL DISTRICT COURT","Avoyelles Adult Drug Court",null,"16TH JUDICIAL DISTRICT COURT"]
["12TH JUDICIAL DISTRICT COURT","Avoyelles FINS Program",null,"17TH JUDICIAL DISTRICT COURT"]
["12TH JUDICIAL DISTRICT COURT","Other",null,"18TH JUDICIAL DISTRICT COURT"]
["13TH JUDICIAL DISTRICT COURT","Judicial Expense Fund",null,"19TH JUDICIAL DISTRICT COURT"]
["13TH JUDICIAL DISTRICT COURT","Other",null,"1ST CIRCUIT COURT OF APPEAL"]
["14TH JUDICIAL DISTRICT COURT","Judicial Expense Fund",null,"1ST PARISH COURT OF JEFFERSON"]
["14TH JUDICIAL DISTRICT COURT","CS Fund",null,"20TH JUDICIAL DISTRICT COURT"]
["14TH JUDICIAL DISTRICT COURT","Criminal Court Fund",null,"21ST JUDICIAL DISTRICT COURT"]
["14TH JUDICIAL DISTRICT COURT","District Judges Fund",null,"22ND JUDICIAL DISTRICT COURT"]
["14TH JUDICIAL DISTRICT COURT","Other",null,"23RD JUDICIAL DISTRICT COURT"]
["15TH JUDICIAL DISTRICT COURT","Judicial Expense Fund",null,"24TH JUDICIAL DISTRICT COURT"]
["15TH JUDICIAL DISTRICT COURT","Enhancement Funds",null,"25TH JUDICIAL DISTRICT COURT"]
["15TH JUDICIAL DISTRICT COURT","Child Support Fund",null,"26TH JUDICIAL DISTRICT COURT"]
["15TH JUDICIAL DISTRICT COURT","Misdemeanor Probation",null,"27TH JUDICIAL DISTRICT COURT"]
["15TH JUDICIAL DISTRICT COURT","Other",null,"28TH JUDICIAL DISTRICT COURT"]
["16TH JUDICIAL DISTRICT COURT","Judicial Expense Fund - GF",null,"29TH JUDICIAL DISTRICT COURT"]
["16TH JUDICIAL DISTRICT COURT","Hearing Officer Fund",null,"2ND PARISH COURT OF JEFFERSON"]
["16TH JUDICIAL DISTRICT COURT","St. Mary Drug Court Testing",null,"30TH JUDICIAL DISTRICT COURT"]
["16TH JUDICIAL DISTRICT COURT","Criminal Court Fund",null,"31ST JUDICIAL DISTRICT COURT"]
["16TH JUDICIAL DISTRICT COURT","Parish government ",null,"32ND JUDICIAL DISTRICT COURT"]
["16TH JUDICIAL DISTRICT COURT","Drug Court - Parish GT",null,"33RD JUDICIAL DISTRICT COURT"]
["16TH JUDICIAL DISTRICT COURT","Other",null,"34TH JUDICIAL DISTRICT COURT"]
["17TH JUDICIAL DISTRICT COURT","Judicial Expense Fund",null,"35TH JUDICIAL DISTRICT COURT"]
["17TH JUDICIAL DISTRICT COURT","FINS ",null,"36TH JUDICIAL DISTRICT COURT"]
["17TH JUDICIAL DISTRICT COURT","Drug Treatment Court",null,"37TH JUDICIAL DISTRICT COURT"]
["17TH JUDICIAL DISTRICT COURT","Other",null,"38TH JUDICIAL DISTRICT COURT"]
["18TH JUDICIAL DISTRICT COURT","Judicial Expense Fund",null,"39TH JUDICIAL DISTRICT COURT"]
["18TH JUDICIAL DISTRICT COURT","Drug Court",null,"3RD CIRCUIT COURT OF APPEAL"]
["18TH JUDICIAL DISTRICT COURT","Hearing Officer",null,"3RD JUDICIAL DISTRICT COURT"]
["18TH JUDICIAL DISTRICT COURT","Probation Department",null,"40TH JUDICIAL DISTRICT COURT"]
["18TH JUDICIAL DISTRICT COURT","Drug Court (Iberville Parish)",null,"42ND JUDICIAL DISTRICT COURT"]
["18TH JUDICIAL DISTRICT COURT","Parish of Pointe Coupee",null,"4TH CIRCUIT COURT OF APPEAL"]
["18TH JUDICIAL DISTRICT COURT","Iberville Parish Council",null,"4TH JUDICIAL DISTRICT COURT"]
["18TH JUDICIAL DISTRICT COURT","WBR Parish Council",null,"5TH CIRCUIT COURT OF APPEAL"]
["18TH JUDICIAL DISTRICT COURT","Other",null,"5TH JUDICIAL DISTRICT COURT"]
["19TH JUDICIAL DISTRICT COURT","Judicial Expense Fund",null,"6TH JUDICIAL DISTRICT COURT"]
["19TH JUDICIAL DISTRICT COURT","Commissioner Funding",null,"7TH JUDICIAL DISTRICT COURT"]
["19TH JUDICIAL DISTRICT COURT","Drug Court",null,"8TH JUDICIAL DISTRICT COURT"]
["19TH JUDICIAL DISTRICT COURT","Other",null,"9TH JUDICIAL DISTRICT COURT"]
["20TH JUDICIAL DISTRICT COURT","Judicial Expense Fund",null,"BUNKIE CITY COURT"]
["20TH JUDICIAL DISTRICT COURT","Probation Office",null,"CADDO PARISH JUVENILE COURT"]
["20TH JUDICIAL DISTRICT COURT","Other",null,"CROWLEY CITY COURT"]
["21ST JUDICIAL DISTRICT COURT","Judicial Expense Fund",null,"DENHAM SPRINGS CITY COURT"]
["21ST JUDICIAL DISTRICT COURT","Indigent Transcript Fund",null,"EAST BATON ROUGE FAMILY COURT"]
["21ST JUDICIAL DISTRICT COURT","Court Support Account",null,"EAST BATON ROUGE JUVENILE COURT"]
["21ST JUDICIAL DISTRICT COURT","Criminal Court Fund",null,"EAST ST. TAMMANY CITY COURT"]
["21ST JUDICIAL DISTRICT COURT","Other",null,"EUNICE CITY COURT"]
["22ND JUDICIAL DISTRICT COURT","Judicial Expense Fund",null,"FRANKLIN CITY COURT"]
["22ND JUDICIAL DISTRICT COURT","Specialty Courts Fund",null,"HAMMOND CITY COURT"]
["22ND JUDICIAL DISTRICT COURT","Non-Support Fund",null,"HOUMA CITY COURT"]
["22ND JUDICIAL DISTRICT COURT","Other",null,"JEANERETTE CITY COURT"]
["23RD JUDICIAL DISTRICT COURT","Judicial Expense Fund",null,"JEFFERSON JUVENILE COURT"]
["23RD JUDICIAL DISTRICT COURT","Child Support Fun",null,"JENNINGS CITY COURT"]
["23RD JUDICIAL DISTRICT COURT","FINS Account",null,"KAPLAN CITY COURT"]
["23RD JUDICIAL DISTRICT COURT","Other",null,"LAFAYETTE CITY COURT"]
["24TH JUDICIAL DISTRICT COURT","Judicial Expense Fund",null,"LAKE CHARLES CITY COURT"]
["24TH JUDICIAL DISTRICT COURT","Court Commissioners",null,"LEESVILLE CITY COURT"]
["24TH JUDICIAL DISTRICT COURT","District Courts - JP",null,"MARKSVILLE CITY COURT"]
["24TH JUDICIAL DISTRICT COURT","Legal Assistance",null,"MINDEN CITY COURT"]
["24TH JUDICIAL DISTRICT COURT","STC - Drug Court",null,"MONROE CITY COURT"]
["24TH JUDICIAL DISTRICT COURT","STC - DWI Court",null,"MORGAN CITY COURT"]
["24TH JUDICIAL DISTRICT COURT","STC - Smart Supervision",null,"NATCHITOCHES CITY COURT"]
["24TH JUDICIAL DISTRICT COURT","STC - Intensive Probation",null,"NEW IBERIA CITY COURT"]
["24TH JUDICIAL DISTRICT COURT","STC - The Lab",null,"NEW ORLEANS MUNICIPAL & TRAFFIC COURT"]
["24TH JUDICIAL DISTRICT COURT","Building Fund - JP",null,"OAKDALE CITY COURT"]
["24TH JUDICIAL DISTRICT COURT","Other",null,"OPELOUSAS CITY COURT"]
["25TH JUDICIAL DISTRICT COURT","Judicial Expense Fund",null,"ORLEANS CIVIL DISTRICT COURT"]
["25TH JUDICIAL DISTRICT COURT","Bond Account",null,"ORLEANS CRIMINAL DISTRICT COURT"]
["25TH JUDICIAL DISTRICT COURT","Criminal Court Fund",null,"ORLEANS JUVENILE COURT"]
["25TH JUDICIAL DISTRICT COURT","Division A ",null,"PINEVILLE CITY COURT"]
["25TH JUDICIAL DISTRICT COURT","Div B & Juvenile",null,"PLAQUEMINE CITY COURT"]
["25TH JUDICIAL DISTRICT COURT","FINS-DWI-Probation",null,"PORT ALLEN CITY COURT"]
["25TH JUDICIAL DISTRICT COURT","Division A Adult Drug Court",null,"RAYNE CITY COURT"]
["25TH JUDICIAL DISTRICT COURT","Other",null,"RUSTON CITY COURT"]
["26TH JUDICIAL DISTRICT COURT","Income and Revenues",null,"SHREVEPORT CITY COURT"]
["26TH JUDICIAL DISTRICT COURT","Adult Drug Court",null,"SPRINGHILL CITY COURT"]
["26TH JUDICIAL DISTRICT COURT","Other",null,"SULPHUR CITY COURT"]
["27TH JUDICIAL DISTRICT COURT","Judicial Expense Fund",null,"THIBODAUX CITY COURT"]
["27TH JUDICIAL DISTRICT COURT","Adult Drug Court ",null,"VIDALIA CITY COURT"]
["27TH JUDICIAL DISTRICT COURT","Hearing Officer",null,"VILLE PLATTE CITY COURT"]
["27TH JUDICIAL DISTRICT COURT","Family Preservation",null,"WEST MONROE CITY COURT"]
["27TH JUDICIAL DISTRICT COURT","Indigent Transcript",null,"WINNFIELD CITY COURT"]
["27TH JUDICIAL DISTRICT COURT","Law Library",null,"WINNSBORO CITY COURT"]
["27TH JUDICIAL DISTRICT COURT","Sobriety Court",null,"ZACHARY CITY COURT"]
["27TH JUDICIAL DISTRICT COURT","Other"]
["28TH JUDICIAL DISTRICT COURT","Judicial Expense Fund"]
["28TH JUDICIAL DISTRICT COURT","Criminal Court Fund"]
["28TH JUDICIAL DISTRICT COURT","FINS"]
["28TH JUDICIAL DISTRICT COURT","Other"]
["29TH JUDICIAL DISTRICT COURT","Judicial District Clerks "]
["29TH JUDICIAL DISTRICT COURT","Criminal Court Fund  "]
["29TH JUDICIAL DISTRICT COURT","SCP Council: Div. C"]
["29TH JUDICIAL DISTRICT COURT","SCP Coucil: 29th JDC"]
["29TH JUDICIAL DISTRICT COURT","SCP Drug Court "]
["29TH JUDICIAL DISTRICT COURT","SCP FINS"]
["29TH JUDICIAL DISTRICT COURT","SCP Family Intervention"]
["29TH JUDICIAL DISTRICT COURT","SVP Council: Div. D"]
["29TH JUDICIAL DISTRICT COURT","SCP Council: Div. E"]
["29TH JUDICIAL DISTRICT COURT","SCP 29th JDC "]
["29TH JUDICIAL DISTRICT COURT","Other"]
["30TH JUDICIAL DISTRICT COURT","Judicial Expense Fund"]
["30TH JUDICIAL DISTRICT COURT","FINS"]
["30TH JUDICIAL DISTRICT COURT","Drug Court"]
["30TH JUDICIAL DISTRICT COURT","Other"]
["31ST JUDICIAL DISTRICT COURT","Judicial Expense Fund"]
["31ST JUDICIAL DISTRICT COURT","Support Enforcement Fund"]
["31ST JUDICIAL DISTRICT COURT","Indigent Transcript Fund"]
["31ST JUDICIAL DISTRICT COURT","Other"]
["32ND JUDICIAL DISTRICT COURT","District Court Fund"]
["32ND JUDICIAL DISTRICT COURT","Family Preservation"]
["32ND JUDICIAL DISTRICT COURT","Law Clerk Fund"]
["32ND JUDICIAL DISTRICT COURT","IV-D "]
["32ND JUDICIAL DISTRICT COURT","Other"]
["33RD JUDICIAL DISTRICT COURT","Judicial Expense Fund"]
["33RD JUDICIAL DISTRICT COURT","FINS"]
["33RD JUDICIAL DISTRICT COURT","Other"]
["34TH JUDICIAL DISTRICT COURT","Judicial Clerk's Fund"]
["34TH JUDICIAL DISTRICT COURT","FINS"]
["34TH JUDICIAL DISTRICT COURT","SBP Criminal Court Fund"]
["34TH JUDICIAL DISTRICT COURT","SBP Juvenile Drug Court, Inc."]
["34TH JUDICIAL DISTRICT COURT","SBP Pre-Trial Drug Testing"]
["34TH JUDICIAL DISTRICT COURT","SBP Adult Drug Court, Inc."]
["34TH JUDICIAL DISTRICT COURT","Other"]
["35TH JUDICIAL DISTRICT COURT","JudicialExpense Fund"]
["35TH JUDICIAL DISTRICT COURT","Other"]
["36TH JUDICIAL DISTRICT COURT","Judicial Expense Fund"]
["36TH JUDICIAL DISTRICT COURT","FINS"]
["36TH JUDICIAL DISTRICT COURT","Adult Drug Court"]
["36TH JUDICIAL DISTRICT COURT","Hearing Officer Fund"]
["36TH JUDICIAL DISTRICT COURT","PJ - Court Operations"]
["36TH JUDICIAL DISTRICT COURT","Other"]
["37TH JUDICIAL DISTRICT COURT","Judicial Expense Fund"]
["37TH JUDICIAL DISTRICT COURT","Drug Court"]
["37TH JUDICIAL DISTRICT COURT","Child Support"]
["37TH JUDICIAL DISTRICT COURT","FINS"]
["37TH JUDICIAL DISTRICT COURT","Misdemeanor Probation"]
["37TH JUDICIAL DISTRICT COURT","Other"]
["38TH JUDICIAL DISTRICT COURT","Judicial Expense Fund"]
["38TH JUDICIAL DISTRICT COURT","Other"]
["39TH JUDICIAL DISTRICT COURT","Judicial Expense Fund"]
["39TH JUDICIAL DISTRICT COURT","Other"]
["40TH JUDICIAL DISTRICT COURT","Judicial Expense Fund"]
["40TH JUDICIAL DISTRICT COURT","FINS"]
["40TH JUDICIAL DISTRICT COURT","Drug Court"]
["40TH JUDICIAL DISTRICT COURT","Other"]
["ORLEANS CIVIL DISTRICT COURT","Judicial Expense Fund"]
["ORLEANS CIVIL DISTRICT COURT","Assistive Outpatient Treatment"]
["ORLEANS CIVIL DISTRICT COURT","Other"]
["ORLEANS CRIMINAL DISTRICT COURT","General Fund"]
["ORLEANS CRIMINAL DISTRICT COURT","Adult Learning"]
["ORLEANS CRIMINAL DISTRICT COURT","CDC - Supreme Court Drug Court"]
["ORLEANS CRIMINAL DISTRICT COURT","Federal Re-entry Program"]
["ORLEANS CRIMINAL DISTRICT COURT","JAG GRANT"]
["ORLEANS CRIMINAL DISTRICT COURT","Jury Commission"]
["ORLEANS CRIMINAL DISTRICT COURT","Sanity Commission"]
["ORLEANS CRIMINAL DISTRICT COURT","VOCA grant"]
["ORLEANS CRIMINAL DISTRICT COURT","Other"]
["42ND JUDICIAL DISTRICT COURT","Judicial Expense Fund"]
["42ND JUDICIAL DISTRICT COURT","Misdemeanor Probation"]
["42ND JUDICIAL DISTRICT COURT","CNF Fund"]
["42ND JUDICIAL DISTRICT COURT","LAMP Account"]
["42ND JUDICIAL DISTRICT COURT","DeSoto FINS"]
["42ND JUDICIAL DISTRICT COURT","Other"]
["CADDO PARISH JUVENILE COURT","Judicial Expense Fund"]
["CADDO PARISH JUVENILE COURT","Child Support Fund"]
["CADDO PARISH JUVENILE COURT","Commission Support"]
["CADDO PARISH JUVENILE COURT","Other"]
["EAST BATON ROUGE FAMILY COURT","Judicial Expense Fund"]
["EAST BATON ROUGE FAMILY COURT","Other"]
["EAST BATON ROUGE JUVENILE COURT","Judicial Expense Fund"]
["EAST BATON ROUGE JUVENILE COURT","Other"]
["JEFFERSON JUVENILE COURT","Judicial Expense Fund"]
["JEFFERSON JUVENILE COURT","Other"]
["ORLEANS JUVENILE COURT","Judicial Expense Fund"]
["ORLEANS JUVENILE COURT","Other"]
["ABBEVILLE CITY COURT","Criminal Account"]
["ABBEVILLE CITY COURT","Civil"]
["ABBEVILLE CITY COURT","Judicial Building  "]
["ABBEVILLE CITY COURT","Other"]
["ALEXANDRIA CITY COURT","General fund"]
["ALEXANDRIA CITY COURT","Other"]
["ASCENSION PARISH COURT","Parish court fund "]
["ASCENSION PARISH COURT","Probation Fund"]
["ASCENSION PARISH COURT","Other"]
["BAKER CITY COURT","Operations Fund"]
["BAKER CITY COURT","Other"]
["BASTROP CITY COURT","Operating Account"]
["BASTROP CITY COURT","City of Bastrop Court Salaries"]
["BASTROP CITY COURT","Criminal Account"]
["BASTROP CITY COURT","Civil Account"]
["BASTROP CITY COURT","Judicial Building Fund"]
["BASTROP CITY COURT","Other"]
["BATON ROUGE CITY COURT","General fund"]
["BATON ROUGE CITY COURT","Other"]
["BOGALUSA CITY COURT","Judicial Expense Fund"]
["BOGALUSA CITY COURT","Other"]
["BOSSIER CITY COURT","Operating Account"]
["BOSSIER CITY COURT","Building Account"]
["BOSSIER CITY COURT","Other"]
["BREAUX BRIDGE CITY COURT","General Account"]
["BREAUX BRIDGE CITY COURT","Other"]
["BUNKIE CITY COURT","Court Cost Account"]
["BUNKIE CITY COURT","Civil Account"]
["BUNKIE CITY COURT","Other"]
["CROWLEY CITY COURT","Judicial Building Fund"]
["CROWLEY CITY COURT","State Account"]
["CROWLEY CITY COURT","Judicial Fees Account"]
["CROWLEY CITY COURT","City Account"]
["CROWLEY CITY COURT","Other"]
["DENHAM SPRINGS CITY COURT","Special Operating Fund"]
["DENHAM SPRINGS CITY COURT","Excess Civil"]
["DENHAM SPRINGS CITY COURT","Other"]
["EAST ST. TAMMANY CITY COURT","Operating"]
["EAST ST. TAMMANY CITY COURT","Special Revenue"]
["EAST ST. TAMMANY CITY COURT","Other"]
["EUNICE CITY COURT","Criminal Fund"]
["EUNICE CITY COURT","Other"]
["FRANKLIN CITY COURT","General Operating"]
["FRANKLIN CITY COURT","Capital Building Fund"]
["FRANKLIN CITY COURT","Other"]
["HAMMOND CITY COURT","Judicial Building Fund"]
["HAMMOND CITY COURT","Civil Fund"]
["HAMMOND CITY COURT","General Fund"]
["HAMMOND CITY COURT","Other"]
["HOUMA CITY COURT","General Fund"]
["HOUMA CITY COURT","Other"]
["JEANERETTE CITY COURT","General Account"]
["JEANERETTE CITY COURT","Other"]
["JEFFERSON PARISH, FIRST COURT","Judicial Expense Fund",null,"BAKER CITY COURT"]
["JEFFERSON PARISH, FIRST COURT","Operating GF Budget",null,"BASTROP CITY COURT"]
["JEFFERSON PARISH, FIRST COURT","Art 894 Fund",null,"BATON ROUGE CITY COURT"]
["JEFFERSON PARISH, FIRST COURT","FPC Probation/892.1 Account",null,"BOGALUSA CITY COURT"]
["JEFFERSON PARISH, FIRST COURT","DWI Account",null,"BOSSIER CITY COURT"]
["JEFFERSON PARISH, FIRST COURT","Other",null,"BREAUX BRIDGE CITY COURT"]
["JEFFERSON PARISH, SECOND COURT","Judicial Expense Fund"]
["JEFFERSON PARISH, SECOND COURT","Probation Revenue"]
["JEFFERSON PARISH, SECOND COURT","DWI Fee"]
["JEFFERSON PARISH, SECOND COURT","892.1 Driving School"]
["JEFFERSON PARISH, SECOND COURT","894 Fee"]
["JEFFERSON PARISH, SECOND COURT","Operating GF  Budget"]
["JEFFERSON PARISH, SECOND COURT","Other"]
["JENNINGS CITY COURT","General Court Fund"]
["JENNINGS CITY COURT","Judicial Building Fund"]
["JENNINGS CITY COURT","Other"]
["KAPLAN CITY COURT","Operating Fund"]
["KAPLAN CITY COURT","Witness Fee fund"]
["KAPLAN CITY COURT","Civil Account"]
["KAPLAN CITY COURT","Other"]
["LAFAYETTE CITY COURT","Operating Account"]
["LAFAYETTE CITY COURT","Lafayette Government"]
["LAFAYETTE CITY COURT","Judge Div. A Operating"]
["LAFAYETTE CITY COURT","Judge Div. B Operating"]
["LAFAYETTE CITY COURT","Judge Div. B Judicial Fees"]
["LAFAYETTE CITY COURT","Judge Div. A New Judicial Fees"]
["LAFAYETTE CITY COURT","Other"]
["LAKE CHARLES CITY COURT","Court Operating Account"]
["LAKE CHARLES CITY COURT","Other"]
["LEESVILLE CITY COURT","Criminal Costs Account"]
["LEESVILLE CITY COURT","Other"]
["MARKSVILLE CITY COURT","Operating Fund"]
["MARKSVILLE CITY COURT","Civil Maintenance Account"]
["MARKSVILLE CITY COURT","Other"]
["MINDEN CITY COURT","General Fund"]
["MINDEN CITY COURT","Judicial Building Fund"]
["MINDEN CITY COURT","Other"]
["MONROE CITY COURT","Special Civil Costs"]
["MONROE CITY COURT","General Operating/Expense"]
["MONROE CITY COURT","Judicial Fund"]
["MONROE CITY COURT","Trust and Agency Fund"]
["MONROE CITY COURT","Special Cost Clearing Form"]
["MONROE CITY COURT","FINS"]
["MONROE CITY COURT","Other"]
["MORGAN CITY COURT","General Account - Juvenile Serv."]
["MORGAN CITY COURT","Civil Fund"]
["MORGAN CITY COURT","Whitney Bank - Juvenile Serv."]
["MORGAN CITY COURT","FINS"]
["MORGAN CITY COURT","Oper. and Maint."]
["MORGAN CITY COURT","Other"]
["NATCHITOCHES CITY COURT","Judicial Account"]
["NATCHITOCHES CITY COURT","Civil HiFi Account"]
["NATCHITOCHES CITY COURT","Other"]
["NEW IBERIA CITY COURT","General Fund"]
["NEW IBERIA CITY COURT","Other"]
["NEW ORLEANS MUNICIPAL & TRAFFIC COURT","Building and Maint."]
["NEW ORLEANS MUNICIPAL & TRAFFIC COURT","Cash Bond Forfeitures"]
["NEW ORLEANS MUNICIPAL & TRAFFIC COURT","Probation Fund"]
["NEW ORLEANS MUNICIPAL & TRAFFIC COURT","Judicial Expense Fund"]
["NEW ORLEANS MUNICIPAL & TRAFFIC COURT","Other"]
["OAKDALE CITY COURT","General Fund"]
["OAKDALE CITY COURT","Other"]
["OPELOUSAS CITY COURT","Criminal Expense Fund"]
["OPELOUSAS CITY COURT","Juvenile Fund"]
["OPELOUSAS CITY COURT","Judicial Building Fund"]
["OPELOUSAS CITY COURT","Other"]
["PINEVILLE CITY COURT","General Fund"]
["PINEVILLE CITY COURT","Building Fund"]
["PINEVILLE CITY COURT","Other"]
["PLAQUEMINE CITY COURT","Civil Fund"]
["PLAQUEMINE CITY COURT","Probation Fund"]
["PLAQUEMINE CITY COURT","Building Fund"]
["PLAQUEMINE CITY COURT","Expense Fund"]
["PLAQUEMINE CITY COURT","Public Defender Fund"]
["PLAQUEMINE CITY COURT","Surplus Civil"]
["PLAQUEMINE CITY COURT","Pretrial Diversion"]
["PLAQUEMINE CITY COURT","Other"]
["PORT ALLEN CITY COURT","Court Expense Fund"]
["PORT ALLEN CITY COURT","Other"]
["RAYNE CITY COURT","Civil Fund"]
["RAYNE CITY COURT","Building/Maintenance Fund"]
["RAYNE CITY COURT","Government Funding "]
["RAYNE CITY COURT","General Fund"]
["RAYNE CITY COURT","Other"]
["RUSTON CITY COURT","Judicial Expense Fund"]
["RUSTON CITY COURT","Other"]
["SHREVEPORT CITY COURT","Cost account"]
["SHREVEPORT CITY COURT","Court Building Fund"]
["SHREVEPORT CITY COURT","City General Fund"]
["SHREVEPORT CITY COURT","Criminal Fund"]
["SHREVEPORT CITY COURT","Pro Bono"]
["SHREVEPORT CITY COURT","Probation Fund"]
["SHREVEPORT CITY COURT","Other"]
["SPRINGHILL CITY COURT","Supply Account"]
["SPRINGHILL CITY COURT","Witness Fund"]
["SPRINGHILL CITY COURT","Probation Fund"]
["SPRINGHILL CITY COURT","Juvenile Probation"]
["SPRINGHILL CITY COURT","Other"]
["SULPHUR CITY COURT","General Fund "]
["SULPHUR CITY COURT","Local Government Support"]
["SULPHUR CITY COURT","Cost Acct"]
["SULPHUR CITY COURT","Building Fund"]
["SULPHUR CITY COURT","Civil Revenue"]
["SULPHUR CITY COURT","Bailbond"]
["SULPHUR CITY COURT","Accrued Judges"]
["SULPHUR CITY COURT","Other"]
["THIBODAUX CITY COURT","General Operating Fund"]
["THIBODAUX CITY COURT","Other"]
["VIDALIA CITY COURT","Court Cost Account"]
["VIDALIA CITY COURT","Civil Account"]
["VIDALIA CITY COURT","Other"]
["VILLE PLATTE CITY COURT","General Fund"]
["VILLE PLATTE CITY COURT","Other"]
["WEST MONROE CITY COURT","Judges Accrued"]
["WEST MONROE CITY COURT","Probation Fund"]
["WEST MONROE CITY COURT","Civil Account"]
["WEST MONROE CITY COURT","Other"]
["WINNFIELD CITY COURT","General Operating Fund"]
["WINNFIELD CITY COURT","Other"]
["WINNSBORO CITY COURT","Operations"]
["WINNSBORO CITY COURT","Other"]
["ZACHARY CITY COURT","Zachary City Court"]
["ZACHARY CITY COURT","Other"]

{"sheet":"UPload","index":5,"n_rows":24,"n_cols":53,"rows_kept":24,"cut":false,"hidden":true,"merged":[]}
["court_name","employees","account_name","audit_date","BOY_bal","LASC","oth_grants","Totalgr","ccf","genfund","taxes","behalf","unk_loc","TotalLoc","civil","ct_costs","process","prob","special","contempt","TotalUser","assets","ref_rev","interest","oth_rev","TotalORev","personnel","cjudge","TotalPers","language","reporters","evals","jury_wit","ctroom","TotalCt","j_travel","j_support","e_travel","e_support","TotalSup","profserv","operat","supplies2","equip","building","nonreimb","TotalOper","reimb","exp_misc","oth_exp","InTrans","OutTrans","EOYBal"]
[{"$f":"AccountDetail!B3","v":"Please select court from dropdown"},{"$f":"Intro!C4","v":0},{"$f":"AccountDetail!$C$3","v":"[please select account name in dropdown]"},{"$f":"Intro!C6","v":"00:00:00"},{"$f":"AccountDetail!$C$4","v":0},{"$f":"AccountDetail!$C$7","v":0},{"$f":"AccountDetail!$C$8","v":0},{"$f":"F2+G2","v":0},{"$f":"AccountDetail!$C$11","v":0},{"$f":"AccountDetail!$C$12","v":0},{"$f":"AccountDetail!$C$13","v":0},{"$f":"AccountDetail!$C$14","v":0},{"$f":"AccountDetail!$C$15","v":0},{"$f":"SUM(I2:M2)","v":0},{"$f":"AccountDetail!$C$17","v":0},{"$f":"AccountDetail!$C$19","v":0},{"$f":"AccountDetail!$C$20","v":0},{"$f":"AccountDetail!$C$21","v":0},{"$f":"AccountDetail!$C$22","v":0},{"$f":"AccountDetail!$C$23","v":0},{"$f":"SUM(P2:T2)","v":0},{"$f":"AccountDetail!$C$26","v":0},{"$f":"AccountDetail!$C$27","v":0},{"$f":"AccountDetail!$C$28","v":0},{"$f":"AccountDetail!$C$29","v":0},{"$f":"SUM(V2:Y2)","v":0},{"$f":"AccountDetail!$C$35","v":0},{"$f":"AccountDetail!$C$36","v":0},{"$f":"AA2+AB2","v":0},{"$f":"AccountDetail!$C$39","v":0},{"$f":"AccountDetail!$C$40","v":0},{"$f":"AccountDetail!$C$41","v":0},{"$f":"AccountDetail!$C$42","v":0},{"$f":"AccountDetail!$C$43","v":0},{"$f":"SUM(AD2:AH2)","v":0},{"$f":"AccountDetail!$C$46","v":0},{"$f":"AccountDetail!$C$47","v":0},{"$f":"AccountDetail!$C$48","v":0},{"$f":"AccountDetail!$C$49","v":0},{"$f":"SUM(AJ2:AM2)","v":0},{"$f":"AccountDetail!$C$52","v":0},{"$f":"AccountDetail!$C$53","v":0},{"$f":"AccountDetail!$C$54","v":0},{"$f":"AccountDetail!$C$55","v":0},{"$f":"AccountDetail!$C$56","v":0},{"$f":"AccountDetail!$C$57","v":0},{"$f":"SUM(AO2:AT2)","v":0},{"$f":"AccountDetail!$C$60","v":0},{"$f":"AccountDetail!$C$61","v":0},{"$f":"AccountDetail!$C$62","v":0},{"$f":"AccountDetail!$C$66","v":0},{"$f":"AccountDetail!$C$67","v":0},{"$f":"AccountDetail!$C$68","v":0}]
[null,null,{"$f":"AccountDetail!$D$3","v":"[please select account name in dropdown]"},null,{"$f":"AccountDetail!$D$4","v":0},{"$f":"AccountDetail!$D$7","v":0},{"$f":"AccountDetail!$D$8","v":0},{"$f":"F3+G3","v":0},{"$f":"AccountDetail!$D$11","v":0},{"$f":"AccountDetail!$D$12","v":0},{"$f":"AccountDetail!$D$13","v":0},{"$f":"AccountDetail!$D$14","v":0},{"$f":"AccountDetail!$D$15","v":0},{"$f":"SUM(I3:M3)","v":0},{"$f":"AccountDetail!$D$17","v":0},{"$f":"AccountDetail!$D$19","v":0},{"$f":"AccountDetail!$D$20","v":0},{"$f":"AccountDetail!$D$21","v":0},{"$f":"AccountDetail!$D$22","v":0},{"$f":"AccountDetail!$D$23","v":0},{"$f":"SUM(P3:T3)","v":0},{"$f":"AccountDetail!$D$26","v":0},{"$f":"AccountDetail!$D$27","v":0},{"$f":"AccountDetail!$D$28","v":0},{"$f":"AccountDetail!$D$29","v":0},{"$f":"SUM(V3:Y3)","v":0},{"$f":"AccountDetail!$D$35","v":0},{"$f":"AccountDetail!$D$36","v":0},{"$f":"AA3+AB3","v":0},{"$f":"AccountDetail!$D$39","v":0},{"$f":"AccountDetail!$D$40","v":0},{"$f":"AccountDetail!$D$41","v":0},{"$f":"AccountDetail!$D$42","v":0},{"$f":"AccountDetail!$D$43","v":0},{"$f":"SUM(AD3:AH3)","v":0},{"$f":"AccountDetail!$D$46","v":0},{"$f":"AccountDetail!$D$47","v":0},{"$f":"AccountDetail!$D$48","v":0},{"$f":"AccountDetail!$D$49","v":0},{"$f":"SUM(AJ3:AM3)","v":0},{"$f":"AccountDetail!$D$52","v":0},{"$f":"AccountDetail!$D$53","v":0},{"$f":"AccountDetail!$D$54","v":0},{"$f":"AccountDetail!$D$55","v":0},{"$f":"AccountDetail!$D$56","v":0},{"$f":"AccountDetail!$D$57","v":0},{"$f":"SUM(AO3:AT3)","v":0},{"$f":"AccountDetail!$D$60","v":0},{"$f":"AccountDetail!$D$61","v":0},{"$f":"AccountDetail!$D$62","v":0},{"$f":"AccountDetail!$D$66","v":0},{"$f":"AccountDetail!$D$67","v":0},{"$f":"AccountDetail!$D$68","v":0}]
[null,null,{"$f":"AccountDetail!$E$3","v":"[please select account name in dropdown]"},null,{"$f":"AccountDetail!$E$4","v":0},{"$f":"AccountDetail!$E$7","v":0},{"$f":"AccountDetail!$E$8","v":0},{"$f":"F4+G4","v":0},{"$f":"AccountDetail!$E$11","v":0},{"$f":"AccountDetail!$E$12","v":0},{"$f":"AccountDetail!$E$13","v":0},{"$f":"AccountDetail!$E$14","v":0},{"$f":"AccountDetail!$E$15","v":0},0,{"$f":"AccountDetail!$E$17","v":0},{"$f":"AccountDetail!$E$19","v":0},{"$f":"AccountDetail!$E$20","v":0},{"$f":"AccountDetail!$E$21","v":0},{"$f":"AccountDetail!$E$22","v":0},{"$f":"AccountDetail!$E$23","v":0},0,{"$f":"AccountDetail!$E$26","v":0},{"$f":"AccountDetail!$E$27","v":0},{"$f":"AccountDetail!$E$28","v":0},{"$f":"AccountDetail!$E$29","v":0},0,{"$f":"AccountDetail!$E$35","v":0},{"$f":"AccountDetail!$E$36","v":0},0,{"$f":"AccountDetail!$E$39","v":0},{"$f":"AccountDetail!$E$40","v":0},{"$f":"AccountDetail!$E$41","v":0},{"$f":"AccountDetail!$E$42","v":0},{"$f":"AccountDetail!$E$43","v":0},0,{"$f":"AccountDetail!$E$46","v":0},{"$f":"AccountDetail!$E$47","v":0},{"$f":"AccountDetail!$E$48","v":0},{"$f":"AccountDetail!$E$49","v":0},0,{"$f":"AccountDetail!$E$52","v":0},{"$f":"AccountDetail!$E$53","v":0},{"$f":"AccountDetail!$E$54","v":0},{"$f":"AccountDetail!$E$55","v":0},{"$f":"AccountDetail!$E$56","v":0},{"$f":"AccountDetail!$E$57","v":0},0,{"$f":"AccountDetail!$E$60","v":0},{"$f":"AccountDetail!$E$61","v":0},{"$f":"AccountDetail!$E$62","v":0},{"$f":"AccountDetail!$E$66","v":0},{"$f":"AccountDetail!$E$67","v":0},{"$f":"AccountDetail!$E$68","v":0}]
[null,null,{"$f":"AccountDetail!$F$3","v":"[please select account name in dropdown]"},null,{"$f":"AccountDetail!$F$4","v":0},{"$f":"AccountDetail!$F$7","v":0},{"$f":"AccountDetail!$F$8","v":0},0,{"$f":"AccountDetail!$F$11","v":0},{"$f":"AccountDetail!$F$12","v":0},{"$f":"AccountDetail!$F$13","v":0},{"$f":"AccountDetail!$F$14","v":0},{"$f":"AccountDetail!$F$15","v":0},0,{"$f":"AccountDetail!$F$17","v":0},{"$f":"AccountDetail!$F$19","v":0},{"$f":"AccountDetail!$F$20","v":0},{"$f":"AccountDetail!$F$21","v":0},{"$f":"AccountDetail!$F$22","v":0},{"$f":"AccountDetail!$F$23","v":0},0,{"$f":"AccountDetail!$F$26","v":0},{"$f":"AccountDetail!$F$27","v":0},{"$f":"AccountDetail!$F$28","v":0},{"$f":"AccountDetail!$F$29","v":0},0,{"$f":"AccountDetail!$F$35","v":0},{"$f":"AccountDetail!$F$36","v":0},0,{"$f":"AccountDetail!$F$39","v":0},{"$f":"AccountDetail!$F$40","v":0},{"$f":"AccountDetail!$F$41","v":0},{"$f":"AccountDetail!$F$42","v":0},{"$f":"AccountDetail!$F$43","v":0},0,{"$f":"AccountDetail!$F$46","v":0},{"$f":"AccountDetail!$F$47","v":0},{"$f":"AccountDetail!$F$48","v":0},{"$f":"AccountDetail!$F$49","v":0},0,{"$f":"AccountDetail!$F$52","v":0},{"$f":"AccountDetail!$F$53","v":0},{"$f":"AccountDetail!$F$54","v":0},{"$f":"AccountDetail!$F$55","v":0},{"$f":"AccountDetail!$F$56","v":0},{"$f":"AccountDetail!$F$57","v":0},0,{"$f":"AccountDetail!$F$60","v":0},{"$f":"AccountDetail!$F$61","v":0},{"$f":"AccountDetail!$F$62","v":0},{"$f":"AccountDetail!$F$66","v":0},{"$f":"AccountDetail!$F$67","v":0},{"$f":"AccountDetail!$F$68","v":0}]
[null,null,{"$f":"AccountDetail!$G$3","v":"[please select account name in dropdown]"},null,{"$f":"AccountDetail!$G$4","v":0},{"$f":"AccountDetail!$G$7","v":0},{"$f":"AccountDetail!$G$8","v":0},0,{"$f":"AccountDetail!$G$11","v":0},{"$f":"AccountDetail!$G$12","v":0},{"$f":"AccountDetail!$G$13","v":0},{"$f":"AccountDetail!$G$14","v":0},{"$f":"AccountDetail!$G$15","v":0},0,{"$f":"AccountDetail!$G$17","v":0},{"$f":"AccountDetail!$G$19","v":0},{"$f":"AccountDetail!$G$20","v":0},{"$f":"AccountDetail!$G$21","v":0},{"$f":"AccountDetail!$G$22","v":0},{"$f":"AccountDetail!$G$23","v":0},0,{"$f":"AccountDetail!$G$26","v":0},{"$f":"AccountDetail!$G$27","v":0},{"$f":"AccountDetail!$G$28","v":0},{"$f":"AccountDetail!$G$29","v":0},0,{"$f":"AccountDetail!$G$35","v":0},{"$f":"AccountDetail!$G$36","v":0},0,{"$f":"AccountDetail!$G$39","v":0},{"$f":"AccountDetail!$G$40","v":0},{"$f":"AccountDetail!$G$41","v":0},{"$f":"AccountDetail!$G$42","v":0},{"$f":"AccountDetail!$G$43","v":0},0,{"$f":"AccountDetail!$G$46","v":0},{"$f":"AccountDetail!$G$47","v":0},{"$f":"AccountDetail!$G$48","v":0},{"$f":"AccountDetail!$G$49","v":0},0,{"$f":"AccountDetail!$G$52","v":0},{"$f":"AccountDetail!$G$53","v":0},{"$f":"AccountDetail!$G$54","v":0},{"$f":"AccountDetail!$G$55","v":0},{"$f":"AccountDetail!$G$56","v":0},{"$f":"AccountDetail!$G$57","v":0},0,{"$f":"AccountDetail!$G$60","v":0},{"$f":"AccountDetail!$G$61","v":0},{"$f":"AccountDetail!$G$62","v":0},{"$f":"AccountDetail!$G$66","v":0},{"$f":"AccountDetail!$G$67","v":0},{"$f":"AccountDetail!$G$68","v":0}]
[null,null,{"$f":"AccountDetail!$H$3","v":"[please select account name in dropdown]"},null,{"$f":"AccountDetail!$H$4","v":0},{"$f":"AccountDetail!$H$7","v":0},{"$f":"AccountDetail!$H$8","v":0},0,{"$f":"AccountDetail!$H$11","v":0},{"$f":"AccountDetail!$H$12","v":0},{"$f":"AccountDetail!$H$13","v":0},{"$f":"AccountDetail!$H$14","v":0},{"$f":"AccountDetail!$H$15","v":0},0,{"$f":"AccountDetail!$H$17","v":0},{"$f":"AccountDetail!$H$19","v":0},{"$f":"AccountDetail!$H$20","v":0},{"$f":"AccountDetail!$H$21","v":0},{"$f":"AccountDetail!$H$22","v":0},{"$f":"AccountDetail!$H$23","v":0},0,{"$f":"AccountDetail!$H$26","v":0},{"$f":"AccountDetail!$H$27","v":0},{"$f":"AccountDetail!$H$28","v":0},{"$f":"AccountDetail!$H$29","v":0},0,{"$f":"AccountDetail!$H$35","v":0},{"$f":"AccountDetail!$H$36","v":0},0,{"$f":"AccountDetail!$H$39","v":0},{"$f":"AccountDetail!$H$40","v":0},{"$f":"AccountDetail!$H$41","v":0},{"$f":"AccountDetail!$H$42","v":0},{"$f":"AccountDetail!$H$43","v":0},0,{"$f":"AccountDetail!$H$46","v":0},{"$f":"AccountDetail!$H$47","v":0},{"$f":"AccountDetail!$H$48","v":0},{"$f":"AccountDetail!$H$49","v":0},0,{"$f":"AccountDetail!$H$52","v":0},{"$f":"AccountDetail!$H$53","v":0},{"$f":"AccountDetail!$H$54","v":0},{"$f":"AccountDetail!$H$55","v":0},{"$f":"AccountDetail!$H$56","v":0},{"$f":"AccountDetail!$H$57","v":0},0,{"$f":"AccountDetail!$H$60","v":0},{"$f":"AccountDetail!$H$61","v":0},{"$f":"AccountDetail!$H$62","v":0},{"$f":"AccountDetail!$H$66","v":0},{"$f":"AccountDetail!$H$67","v":0},{"$f":"AccountDetail!$H$68","v":0}]
[null,null,{"$f":"AccountDetail!$I$3","v":"[please select account name in dropdown]"},null,{"$f":"AccountDetail!$I$4","v":0},{"$f":"AccountDetail!$I$7","v":0},{"$f":"AccountDetail!$I$8","v":0},0,{"$f":"AccountDetail!$I$11","v":0},{"$f":"AccountDetail!$I$12","v":0},{"$f":"AccountDetail!$I$13","v":0},{"$f":"AccountDetail!$I$14","v":0},{"$f":"AccountDetail!$I$15","v":0},0,{"$f":"AccountDetail!$I$17","v":0},{"$f":"AccountDetail!$I$19","v":0},{"$f":"AccountDetail!$I$20","v":0},{"$f":"AccountDetail!$I$21","v":0},{"$f":"AccountDetail!$I$22","v":0},{"$f":"AccountDetail!$I$23","v":0},0,{"$f":"AccountDetail!$I$26","v":0},{"$f":"AccountDetail!$I$27","v":0},{"$f":"AccountDetail!$I$28","v":0},{"$f":"AccountDetail!$I$29","v":0},0,{"$f":"AccountDetail!$I$35","v":0},{"$f":"AccountDetail!$I$36","v":0},0,{"$f":"AccountDetail!$I$39","v":0},{"$f":"AccountDetail!$I$40","v":0},{"$f":"AccountDetail!$I$41","v":0},{"$f":"AccountDetail!$I$42","v":0},{"$f":"AccountDetail!$I$43","v":0},0,{"$f":"AccountDetail!$I$46","v":0},{"$f":"AccountDetail!$I$47","v":0},{"$f":"AccountDetail!$I$48","v":0},{"$f":"AccountDetail!$I$49","v":0},0,{"$f":"AccountDetail!$I$52","v":0},{"$f":"AccountDetail!$I$53","v":0},{"$f":"AccountDetail!$I$54","v":0},{"$f":"AccountDetail!$I$55","v":0},{"$f":"AccountDetail!$I$56","v":0},{"$f":"AccountDetail!$I$57","v":0},0,{"$f":"AccountDetail!$I$60","v":0},{"$f":"AccountDetail!$I$61","v":0},{"$f":"AccountDetail!$I$62","v":0},{"$f":"AccountDetail!$I$66","v":0},{"$f":"AccountDetail!$I$67","v":0},{"$f":"AccountDetail!$I$68","v":0}]
[null,null,{"$f":"AccountDetail!$J$3","v":"[please select account name in dropdown]"},null,{"$f":"AccountDetail!$J$4","v":0},{"$f":"AccountDetail!$J$7","v":0},{"$f":"AccountDetail!$J$8","v":0},0,{"$f":"AccountDetail!$J$11","v":0},{"$f":"AccountDetail!$J$12","v":0},{"$f":"AccountDetail!$J$13","v":0},{"$f":"AccountDetail!$J$14","v":0},{"$f":"AccountDetail!$J$15","v":0},0,{"$f":"AccountDetail!$J$17","v":0},{"$f":"AccountDetail!$J$19","v":0},{"$f":"AccountDetail!$J$20","v":0},{"$f":"AccountDetail!$J$21","v":0},{"$f":"AccountDetail!$J$22","v":0},{"$f":"AccountDetail!$J$23","v":0},0,{"$f":"AccountDetail!$J$26","v":0},{"$f":"AccountDetail!$J$27","v":0},{"$f":"AccountDetail!$J$28","v":0},{"$f":"AccountDetail!$J$29","v":0},0,{"$f":"AccountDetail!$J$35","v":0},{"$f":"AccountDetail!$J$36","v":0},0,{"$f":"AccountDetail!$J$39","v":0},{"$f":"AccountDetail!$J$40","v":0},{"$f":"AccountDetail!$J$41","v":0},{"$f":"AccountDetail!$J$42","v":0},{"$f":"AccountDetail!$J$43","v":0},0,{"$f":"AccountDetail!$J$46","v":0},{"$f":"AccountDetail!$J$47","v":0},{"$f":"AccountDetail!$J$48","v":0},{"$f":"AccountDetail!$J$49","v":0},0,{"$f":"AccountDetail!$J$52","v":0},{"$f":"AccountDetail!$J$53","v":0},{"$f":"AccountDetail!$J$54","v":0},{"$f":"AccountDetail!$J$55","v":0},{"$f":"AccountDetail!$J$56","v":0},{"$f":"AccountDetail!$J$57","v":0},0,{"$f":"AccountDetail!$J$60","v":0},{"$f":"AccountDetail!$J$61","v":0},{"$f":"AccountDetail!$J$62","v":0},{"$f":"AccountDetail!$J$66","v":0},{"$f":"AccountDetail!$J$67","v":0},{"$f":"AccountDetail!$J$68","v":0}]
[null,null,{"$f":"AccountDetail!$K$3","v":"[please select account name in dropdown]"},null,{"$f":"AccountDetail!$K$4","v":0},{"$f":"AccountDetail!$K$7","v":0},{"$f":"AccountDetail!$K$8","v":0},0,{"$f":"AccountDetail!$K$11","v":0},{"$f":"AccountDetail!$K$12","v":0},{"$f":"AccountDetail!$K$13","v":0},{"$f":"AccountDetail!$K$14","v":0},{"$f":"AccountDetail!$K$15","v":0},0,{"$f":"AccountDetail!$K$17","v":0},{"$f":"AccountDetail!$K$19","v":0},{"$f":"AccountDetail!$K$20","v":0},{"$f":"AccountDetail!$K$21","v":0},{"$f":"AccountDetail!$K$22","v":0},{"$f":"AccountDetail!$K$23","v":0},0,{"$f":"AccountDetail!$K$26","v":0},{"$f":"AccountDetail!$K$27","v":0},{"$f":"AccountDetail!$K$28","v":0},{"$f":"AccountDetail!$K$29","v":0},0,{"$f":"AccountDetail!$K$35","v":0},{"$f":"AccountDetail!$K$36","v":0},0,{"$f":"AccountDetail!$K$39","v":0},{"$f":"AccountDetail!$K$40","v":0},{"$f":"AccountDetail!$K$41","v":0},{"$f":"AccountDetail!$K$42","v":0},{"$f":"AccountDetail!$K$43","v":0},0,{"$f":"AccountDetail!$K$46","v":0},{"$f":"AccountDetail!$K$47","v":0},{"$f":"AccountDetail!$K$48","v":0},{"$f":"AccountDetail!$K$49","v":0},0,{"$f":"AccountDetail!$K$52","v":0},{"$f":"AccountDetail!$K$53","v":0},{"$f":"AccountDetail!$K$54","v":0},{"$f":"AccountDetail!$K$55","v":0},{"$f":"AccountDetail!$K$56","v":0},{"$f":"AccountDetail!$K$57","v":0},0,{"$f":"AccountDetail!$K$60","v":0},{"$f":"AccountDetail!$K$61","v":0},{"$f":"AccountDetail!$K$62","v":0},{"$f":"AccountDetail!$K$66","v":0},{"$f":"AccountDetail!$K$67","v":0},{"$f":"AccountDetail!$K$68","v":0}]
[null,null,{"$f":"AccountDetail!$L$3","v":"[please select account name in dropdown]"},null,{"$f":"AccountDetail!$L$4","v":0},{"$f":"AccountDetail!$L$7","v":0},{"$f":"AccountDetail!$L$8","v":0},0,{"$f":"AccountDetail!$L$11","v":0},{"$f":"AccountDetail!$L$12","v":0},{"$f":"AccountDetail!$L$13","v":0},{"$f":"AccountDetail!$L$14","v":0},{"$f":"AccountDetail!$L$15","v":0},0,{"$f":"AccountDetail!$L$17","v":0},{"$f":"AccountDetail!$L$19","v":0},{"$f":"AccountDetail!$L$20","v":0},{"$f":"AccountDetail!$L$21","v":0},{"$f":"AccountDetail!$L$22","v":0},{"$f":"AccountDetail!$L$23","v":0},0,{"$f":"AccountDetail!$L$26","v":0},{"$f":"AccountDetail!$L$27","v":0},{"$f":"AccountDetail!$L$28","v":0},{"$f":"AccountDetail!$L$29","v":0},0,{"$f":"AccountDetail!$L$35","v":0},{"$f":"AccountDetail!$L$36","v":0},0,{"$f":"AccountDetail!$L$39","v":0},{"$f":"AccountDetail!$L$40","v":0},{"$f":"AccountDetail!$L$41","v":0},{"$f":"AccountDetail!$L$42","v":0},{"$f":"AccountDetail!$L$43","v":0},0,{"$f":"AccountDetail!$L$46","v":0},{"$f":"AccountDetail!$L$47","v":0},{"$f":"AccountDetail!$L$48","v":0},{"$f":"AccountDetail!$L$49","v":0},0,{"$f":"AccountDetail!$L$52","v":0},{"$f":"AccountDetail!$L$53","v":0},{"$f":"AccountDetail!$L$54","v":0},{"$f":"AccountDetail!$L$55","v":0},{"$f":"AccountDetail!$L$56","v":0},{"$f":"AccountDetail!$L$57","v":0},0,{"$f":"AccountDetail!$L$60","v":0},{"$f":"AccountDetail!$L$61","v":0},{"$f":"AccountDetail!$L$62","v":0},{"$f":"AccountDetail!$L$66","v":0},{"$f":"AccountDetail!$L$67","v":0},{"$f":"AccountDetail!$L$68","v":0}]
[null,null,{"$f":"AccountDetail!$M$3","v":"TOTALS"},null,{"$f":"AccountDetail!$M$4","v":0},{"$f":"AccountDetail!$M$7","v":0},{"$f":"AccountDetail!$M$8","v":0},0,{"$f":"AccountDetail!$M$11","v":0},{"$f":"AccountDetail!$M$12","v":0},{"$f":"AccountDetail!$M$13","v":0},{"$f":"AccountDetail!$M$14","v":0},{"$f":"AccountDetail!$M$15","v":0},0,{"$f":"AccountDetail!$M$17","v":0},{"$f":"AccountDetail!$M$19","v":0},{"$f":"AccountDetail!$M$20","v":0},{"$f":"AccountDetail!$M$21","v":0},{"$f":"AccountDetail!$M$22","v":0},{"$f":"AccountDetail!$M$23","v":0},0,{"$f":"AccountDetail!$M$26","v":0},{"$f":"AccountDetail!$M$27","v":0},{"$f":"AccountDetail!$M$28","v":0},{"$f":"AccountDetail!$M$29","v":0},0,{"$f":"AccountDetail!$M$35","v":0},{"$f":"AccountDetail!$M$36","v":0},0,{"$f":"AccountDetail!$M$39","v":0},{"$f":"AccountDetail!$M$40","v":0},{"$f":"AccountDetail!$M$41","v":0},{"$f":"AccountDetail!$M$42","v":0},{"$f":"AccountDetail!$M$43","v":0},0,{"$f":"AccountDetail!$M$46","v":0},{"$f":"AccountDetail!$M$47","v":0},{"$f":"AccountDetail!$M$48","v":0},{"$f":"AccountDetail!$M$49","v":0},0,{"$f":"AccountDetail!$M$52","v":0},{"$f":"AccountDetail!$M$53","v":0},{"$f":"AccountDetail!$M$54","v":0},{"$f":"AccountDetail!$M$55","v":0},{"$f":"AccountDetail!$M$56","v":0},{"$f":"AccountDetail!$M$57","v":0},0,{"$f":"AccountDetail!$M$60","v":0},{"$f":"AccountDetail!$M$61","v":0},{"$f":"AccountDetail!$M$62","v":0},{"$f":"AccountDetail!$M$66","v":0},{"$f":"AccountDetail!$M$67","v":0},{"$f":"AccountDetail!$M$68","v":0}]
[]
[]
[]
[]
[]
[]
[]
[]
[]
[]
["contact_name","contact_info","ph_number","cj_name","Timestamp"]
[{"$f":"Intro!C7","v":0},{"$f":"Intro!C8","v":0},{"$f":"Intro!C9","v":0},{"$f":"Intro!C10","v":0}]

{"sheet":"Courts","index":6,"n_rows":104,"n_cols":13,"rows_kept":104,"cut":false,"hidden":true,"merged":[]}
["Court_num","Court_identity","Account1","Account2","Account3","Account4","Account5","Account 6","Account7","Account8","Account9","Account10"]
[105,"Please select court from dropdown"]
[11,"1ST JUDICIAL DISTRICT COURT","General Fund","Judicial Expense Fund","Criminal Court Fund  ","Child Support Fund","Law Officers Witness Fund",null,null,null,null,null,56]
[23,"2ND JUDICIAL DISTRICT COURT","Judicial Expense Fund"]
[35,"3RD JUDICIAL DISTRICT COURT","Judicial Clerk's Fund - JCF","Union Parish Probation","Children's Assistance ","Drug Court"]
[38,"4TH JUDICIAL DISTRICT COURT","Judicial Expense Fund","Adult Drug Court","Probation","Re-entry Specialty Court","FINS","Payroll","Juvenile Drug Court","Child Support"]
[39,"5TH JUDICIAL DISTRICT COURT","Judicial Expense Fund","Fifth Judicial District Special Excessive Cost Account","Fifth District FINS Account","Richland Parish District Judges Account","Fifth Judicial District Hearing Officer"]
[40,"6TH JUDICIAL DISTRICT COURT","Judicial Expense Fund","Probation Account","6th FINS Account","Drug Court","Non Support"]
[41,"7TH JUDICIAL DISTRICT COURT","Judicial Expense Fund"]
[42,"8TH JUDICIAL DISTRICT COURT","Judicial Expense Fund","Misdemeanor Probation Account","Child Support","Police Jury On-behalf"]
[43,"9TH JUDICIAL DISTRICT COURT","Judicial Expense Fund","CS Fund/Child Support Fund","FINS","Adult Drug Court","Behavioral Health Court Grant","Juvenile Probation","Rapides Parish PJ Criminal Court Fund","Rapides Parish General Fund"]
[1,"10TH JUDICIAL DISTRICT COURT","Judicial Expense Fund","Child Support /4-D Account","Adult Drug Court","Juvenile Drug Court","FINS","Criminal Court Fund"]
[2,"11TH JUDICIAL DISTRICT COURT","Eleventh Judicial District Judicial Expense Fund","11th JDC Sabine Parish FINS"]
[3,"12TH JUDICIAL DISTRICT COURT","Judicial Expense Fund","12th JDC Court Service Program","Avoyelles Adult Drug Court","Avoyelles FINS Program"]
[4,"13TH JUDICIAL DISTRICT COURT","Judicial Expense Fund"]
[5,"14TH JUDICIAL DISTRICT COURT","Judicial Expense Fund","14th JDC CS Fund","Criminal Court Fund","District Judges Fund?"]
[6,"15TH JUDICIAL DISTRICT COURT","Judicial Expense Fund","15th JDC Enhancement Funds","15th JDC Child Support Fund","15th Judicial District Court Misdemeanor Probation"]
[7,"16TH JUDICIAL DISTRICT COURT","Judicial Expense Fund - General Fund","Hearing Officer Fund","St. Mary Drug Court Testing Fund","16th JDC Criminal Court Fund","Parish government ","16TH JDC DRUG COURT - PARISH GOVERNMENT"]
[8,"17TH JUDICIAL DISTRICT COURT","Judicial Expense Fund","FINS - Families in Need of Services","Lafourche Parish Drug Treatment Court"]
[9,"18TH JUDICIAL DISTRICT COURT","Judicial Expense Fund","Drug Court","Hearing Officer","Probation Department","Drug Court (Iberville Parish)","Parish of Pointe Coupee","Iberville Parish Council","West Baton Rouge Parish Council"]
[10,"19TH JUDICIAL DISTRICT COURT","Judicial Expense Fund","JEF Commissioner Funding","Judicial Expense Fund - Drug Court"]
[13,"20TH JUDICIAL DISTRICT COURT","Judicial Expense Fund","20th JDC Probation Office"]
[14,"21ST JUDICIAL DISTRICT COURT","Judicial Expense Fund","Indigent Transcript Fund","Court Support Account","Criminal Court Fund"]
[15,"22ND JUDICIAL DISTRICT COURT","Judicial Expense Fund","Specialty Courts Fund","Non-Support Fund"]
[16,"23RD JUDICIAL DISTRICT COURT","Judicial Expense Fund","Child Support Fun","FINS Account"]
[17,"24TH JUDICIAL DISTRICT COURT","Judicial Expense Fund","24th Court Commissioners","District Courts - Jefferson Parish","Legal Assistance","Specialty Treatment Courts - Drug Court","Specialty Treatment Courts - DWI Court","Specialty Treatment Courts - Smart Supervision","Specialty Treatment Courts - Intensive Probation","Specialty Treatment Courts - The Lab","Building Fund - Jefferson Parish"]
[18,"25TH JUDICIAL DISTRICT COURT","Judicial Expense Fund","25th JDC Bond Account","Criminal Court Fund","Division A - Judge Kevin D. Conner","25th JDC Div B & Juvenile Div","FINS-DWI-Probation","Division A Adult Drug Court"]
[19,"26TH JUDICIAL DISTRICT COURT","Income and Revenues","26th JDC Adult Drug Court"]
[20,"27TH JUDICIAL DISTRICT COURT","Judicial Expense Fund","Adult Drug Court ","Hearing Officer","Family Preservation","Indigent Transcript","Law Library","Sobriety Court"]
[21,"28TH JUDICIAL DISTRICT COURT","Judicial Expense Fund","Criminal Court Fund - LaSalle Parish Police Jury","FINS"]
[22,"29TH JUDICIAL DISTRICT COURT","Judicial District Clerk's Account","Criminal Court Fund  ","St. Charles Parish Council: Division C","St. Charles Parish Coucil: 29th JDC","St. Charles Parish Drug Court Account","St. Charles Parish FINS","St. Charles Parish Family Intervention Court","St. Charles Parish Council: Division D","St. Charles Parish Council: Division E","St. Charles Parish 29th JDC Account"]
[25,"30TH JUDICIAL DISTRICT COURT","Judicial Expense Fund"]
[26,"31ST JUDICIAL DISTRICT COURT","Judicial Expense Fund","Support Enforcement Fund","Indigent Transcript Fund"]
[27,"32ND JUDICIAL DISTRICT COURT","District Court Fund","32nd JDC Family Preservation Court","32nd JDC Law Clerk Fund","32 JDC IV-D "]
[28,"33RD JUDICIAL DISTRICT COURT","Judicial Expense Fund","33rd Judicial District Court FINS"]
[29,"34TH JUDICIAL DISTRICT COURT","Judicial Clerk's Fund of the 34th JDC - St. Bernard","FINS","St. Bernard Parish Government Criminal Court","St. Bernard Parish Juvenile Drug Court, Inc.","St. Bernard Parish Pre-Trial Drug Testing Program","St. Bernard Parish Adult Drug Court, Inc."]
[30,"35TH JUDICIAL DISTRICT COURT","JudicialExpense Fund","FINS"]
[31,"36TH JUDICIAL DISTRICT COURT","Judicial Expense Fund","FINS","36th JDC Adult Drug Court","Hearing Officer Fund","Police Jury - Court Operations"]
[32,"37TH JUDICIAL DISTRICT COURT","Judicial Expense Fund","Drug Court","Child Support","FINS","Misdemeanor Probation Account"]
[33,"38TH JUDICIAL DISTRICT COURT","Judicial Expense Fund","Drug Court"]
[34,"39TH JUDICIAL DISTRICT COURT","Judicial Expense Fund"]
[36,"40TH JUDICIAL DISTRICT COURT","Judicial Expense Fund","40th JDC FINS","40th JDC Drug Court"]
[37,"42ND JUDICIAL DISTRICT COURT","Judicial Expense Fund","42nd JDC Misdemeanor Probation Fund","DeSoto FINS","42nd JDC CNF Fund","42nd JDC LAMP Account"]
[54,"CADDO PARISH JUVENILE COURT","Judicial Expense Fund","Child Support Fund","Commission Support"]
[57,"EAST BATON ROUGE FAMILY COURT","Judicial Expense Fund"]
[58,"EAST BATON ROUGE JUVENILE COURT","Judicial Expense Fund"]
[65,"JEFFERSON JUVENILE COURT","Judicial Expense Fund"]
[82,"ORLEANS CIVIL DISTRICT COURT","Judicial Expense Fund","Assistive Outpatient Treatment Program"]
[83,"ORLEANS CRIMINAL DISTRICT COURT","General Fund","Adult Learning","CDC - Supreme Court Drug Court","Federal Re-entry Program","JAG GRANT","Jury Commission","Sanity Commission","VOCA grant"]
[84,"ORLEANS JUVENILE COURT","Judicial Expense Fund"]
[12,"1ST PARISH COURT OF JEFFERSON","Operating General Fund Budget","First Parish Court Art 894 Fund","FPC Probation/892.1 Account","First Parish Court DWI Account","Judicial Expense Fund"]
[24,"2ND PARISH COURT OF JEFFERSON","Judicial Expense Fund","Probation Revenue","DWI Fee","892.1 Driving School","894 Fee","Operating General Fund Budget"]
[44,"ABBEVILLE CITY COURT","Criminal Account","Civil","Judicial Building  "]
[45,"ALEXANDRIA CITY COURT","General fund"]
[46,"ASCENSION PARISH COURT","Parish court fund ","Probation Fund"]
[47,"BAKER CITY COURT","Operations Fund"]
[48,"BASTROP CITY COURT","Operating Account","City of Bastrop Court Salaries","Criminal Account","Civil Account","Judicial Building Fund"]
[49,"BATON ROUGE CITY COURT","General fund"]
[50,"BOGALUSA CITY COURT","Judicial Expense Fund"]
[51,"BOSSIER CITY COURT","Bossier City Court Operating Account","Bossier City Court Building Account"]
[52,"BREAUX BRIDGE CITY COURT","Breaux Bridge City Court - General Account"]
[53,"BUNKIE CITY COURT","Court Cost Account","Bunkie City Court Civil Account"]
[55,"CROWLEY CITY COURT","Judicial Building Fund","State Account","JUDICIAL FEES ACCOUNT","City Account"]
[56,"DENHAM SPRINGS CITY COURT","Special Operating Fund","Excess Civil"]
[59,"EAST ST. TAMMANY CITY COURT","Operating","Special Revenue"]
[60,"EUNICE CITY COURT","Criminal Fund"]
[61,"FRANKLIN CITY COURT","Court General Operating Revenue Fund","Capital Building Fund"]
[62,"HAMMOND CITY COURT","Judicial Building Fund","Civil Fund","General Fund"]
[63,"HOUMA CITY COURT","General Fund"]
[64,"JEANERETTE CITY COURT","General Account"]
[66,"JENNINGS CITY COURT","Jennings City Court General Court Fund","Jennings City Court Judicial Building Fund"]
[67,"KAPLAN CITY COURT","Operating Fund","Witness Fee fund","Civil Account"]
[68,"LAFAYETTE CITY COURT","City Court Operating account","Lafayette City Parish Consolidated Government funding","Judge Division A Operating","Judge Division B Operating","Judge Division B Judicial Fees","Judge Division A New Judicial Fees"]
[69,"LAKE CHARLES CITY COURT","Lake Charles City Court Operating Account"]
[70,"LEESVILLE CITY COURT","City Court Criminal Costs Account"]
[71,"MARKSVILLE CITY COURT","Operating Fund","Civil Maintenance Account"]
[72,"MINDEN CITY COURT","General Fund","Judicial Building Fund"]
[73,"MONROE CITY COURT","Special Civil Costs Fund","General Operating and Expense Account","Judicial Fund","Trust and Agency Fund","Special Cost Clearing Form","FINS"]
[74,"MORGAN CITY COURT","General Account - Juvenile Services","Civil Fund","Whitney Bank - Juvenile Services","FINS - Juvenile Services","Operations and Maintenance"]
[75,"NATCHITOCHES CITY COURT","Judicial Account","Civil HiFi Account"]
[76,"NEW IBERIA CITY COURT","General Fund"]
[79,"NEW ORLEANS MUNICIPAL & TRAFFIC COURT","Building and Maintenance","Cash Bond Forfeitures","Probation Fund","Judicial Expense Fund"]
[80,"OAKDALE CITY COURT","General Fund"]
[81,"OPELOUSAS CITY COURT","CRIMINAL EXPENSE FUND","JUVENILE FUND","JUDICIAL BUILDING FUND"]
[85,"PINEVILLE CITY COURT","General Fund","Building Fund"]
[86,"PLAQUEMINE CITY COURT","Civil Fund","Probation Fund","Building Fund","Expense Fund","Public Defender Fund","Surplus Civil","Pretrial Diversion"]
[87,"PORT ALLEN CITY COURT","Port Allen City Court Expense Fund"]
[88,"RAYNE CITY COURT","Civil Fund","Building and Maintenance Fund","Government Funding ","General Fund"]
[89,"RUSTON CITY COURT","Judicial Expense Fund"]
[90,"SHREVEPORT CITY COURT","Cost account","Court Building Fund","City of Shreveport General Fund","Criminal Fund","Pro Bono","Probation Fund"]
[91,"SPRINGHILL CITY COURT","Supply Account","Springhill City Court - Witness Fund","Springhill City Court Probation Fund","Springhill City Court - Juvenile Probation"]
[92,"SULPHUR CITY COURT","General Fund ","Local Government Support","Cost Acct","Building Fund","Civil Revenue","Bailbond","Accrued Judges"]
[93,"THIBODAUX CITY COURT","General Operating Fund"]
[94,"VIDALIA CITY COURT","Court Cost Account","Civil Account"]
[95,"VILLE PLATTE CITY COURT","General Fund"]
[96,"WEST MONROE CITY COURT","Judge's Accrued Account","West Monroe City Court Probation Fund","Civil Account"]
[97,"WINNFIELD CITY COURT","General Operating Fund"]
[98,"WINNSBORO CITY COURT","Operations"]
[99,"ZACHARY CITY COURT","Zachary City Court"]
[100,"1ST CIRCUIT COURT OF APPEAL","General Fund","Fee Fund"]
[101,"2ND CIRCUIT COURT OF APPEAL","General Fund","Fee Fund","Investment Funds"]
[102,"3RD CIRCUIT COURT OF APPEAL","General Fund","Fee Fund","Investments"]
[103,"4TH CIRCUIT COURT OF APPEAL","General Fund","Whitney savings","Clerk's Fund","Liberty Bank and Trust"]
[104,"5TH CIRCUIT COURT OF APPEAL","Court Operations"]

{"sheet":"YE","index":7,"n_rows":11,"n_cols":3,"rows_kept":11,"cut":false,"hidden":true,"merged":[]}
["EOY",null,"Accounts"]
["2021-10-31",null,1]
["2021-12-31",null,2]
["2022-06-30",null,3]
["2021-09-30",null,4]
["2021-08-31",null,5]
[null,null,6]
[null,null,7]
[null,null,8]
[null,null,9]
[null,null,10]